[Event "Early-Titled-Tuesday-Blitz-September-05-2023"]
[Site "Chess.com"]
[Date "2023.09.05"]
[Round "6"]
[White "topin8"]
[Black "Heinza9"]
[Result "0-1"]
[WhiteElo "2455"]
[BlackElo "2296"]
[TimeControl "180+1"]
[EndTime "9:06:40 PDT"]
[Termination "Heinza9 won on time"]

1. e4 {[%clk 0:03:00.9]} 1... e5 {[%clk 0:03:00.1]} 2. Nf3 {[%clk 0:02:59.8]}
2... Nc6 {[%clk 0:03:00.1]} 3. Bb5 {[%clk 0:02:58.6]} 3... f5 {[%clk 0:03:00.2]}
4. d3 {[%clk 0:02:57.8]} 4... Nf6 {[%clk 0:02:59.8]} 5. Nc3 {[%clk 0:02:53.8]}
5... d6 {[%clk 0:02:59.4]} 6. O-O {[%clk 0:02:53.2]} 6... Be7 {[%clk 0:02:59.1]}
7. a3 {[%clk 0:02:46.4]} 7... O-O {[%clk 0:02:49.4]} 8. Bc4+ {[%clk 0:02:29]}
8... Kh8 {[%clk 0:02:48.9]} 9. Ng5 {[%clk 0:02:29.5]} 9... Qe8 {[%clk
0:02:49.2]} 10. Ne6 {[%clk 0:02:23.4]} 10... Bxe6 {[%clk 0:02:48]} 11. Bxe6
{[%clk 0:02:24.3]} 11... f4 {[%clk 0:02:45.4]} 12. Bh3 {[%clk 0:02:01.6]} 12...
g5 {[%clk 0:02:39.6]} 13. f3 {[%clk 0:01:57.8]} 13... h5 {[%clk 0:02:34.9]} 14.
g3 {[%clk 0:01:57.1]} 14... Nd4 {[%clk 0:02:21.5]} 15. Ne2 {[%clk 0:01:41.8]}
15... Nxf3+ {[%clk 0:02:11.4]} 16. Rxf3 {[%clk 0:01:42.6]} 16... g4 {[%clk
0:02:11.5]} 17. Rf2 {[%clk 0:01:32]} 17... f3 {[%clk 0:02:03.4]} 18. Nc3 {[%clk
0:01:29.5]} 18... gxh3 {[%clk 0:01:58.8]} 19. Rxf3 {[%clk 0:01:27.1]} 19... Ng4
{[%clk 0:01:58.5]} 20. Nd5 {[%clk 0:01:21.3]} 20... Qd7 {[%clk 0:01:23.6]} 21.
Ne3 {[%clk 0:01:12.2]} 21... Qc6 {[%clk 0:00:57]} 22. Nf5 {[%clk 0:00:39.9]}
22... Qb6+ {[%clk 0:00:52.3]} 23. Kh1 {[%clk 0:00:13.4]} 23... Qf2 {[%clk
0:00:33.1]} 24. Qf1 {[%clk 0:00:05]} 24... Qxf1+ {[%clk 0:00:31.6]} 25. Rxf1
{[%clk 0:00:03.9]} 25... Bf6 {[%clk 0:00:26.8]} 26. Bd2 {[%clk 0:00:04.2]} 26...
Rf7 {[%clk 0:00:25.2]} 27. c4 {[%clk 0:00:04]} 27... Raf8 {[%clk 0:00:24.6]} 28.
Rf3 {[%clk 0:00:04.5]} 28... Bd8 {[%clk 0:00:22.8]} 29. Raf1 {[%clk 0:00:04.8]}
29... Kh7 {[%clk 0:00:19.7]} 30. Kg1 {[%clk 0:00:05.2]} 30... Nf6 {[%clk
0:00:16.5]} 31. Nh6 {[%clk 0:00:04.7]} 31... Rg7 {[%clk 0:00:13.6]} 32. Nf5
{[%clk 0:00:04.2]} 32... Rgf7 {[%clk 0:00:13.6]} 33. b4 {[%clk 0:00:02.3]} 33...
Ng4 {[%clk 0:00:12.3]} 34. Kh1 {[%clk 0:00:02.6]} 34... Rf6 {[%clk 0:00:11.2]}
35. c5 {[%clk 0:00:02.7]} 35... dxc5 {[%clk 0:00:10.5]} 36. bxc5 {[%clk
0:00:03.6]} 36... b6 {[%clk 0:00:10.1]} 37. Bg5 {[%clk 0:00:03.6]} 37... R6f7
{[%clk 0:00:07.8]} 38. Bxd8 {[%clk 0:00:04.5]} 38... Rxd8 {[%clk 0:00:07.8]} 39.
cxb6 {[%clk 0:00:03.4]} 39... axb6 {[%clk 0:00:07.9]} 40. Rc1 {[%clk 0:00:03.3]}
40... c5 {[%clk 0:00:06.8]} 41. Rff1 {[%clk 0:00:03.3]} 41... Rfd7 {[%clk
0:00:06.3]} 42. Nh4 {[%clk 0:00:02.3]} 42... Rxd3 {[%clk 0:00:05.9]} 43. Rf7+
{[%clk 0:00:02.6]} 43... Kg8 {[%clk 0:00:05.8]} 44. Rcf1 {[%clk 0:00:02.8]}
44... Rd1 {[%clk 0:00:06]} 45. Kg1 {[%clk 0:00:02.8]} 45... Ne3 {[%clk
0:00:05.4]} 46. Rxd1 {[%clk 0:00:01.4]} 46... Rxd1+ {[%clk 0:00:05.1]} 47. Kf2
{[%clk 0:00:02.3]} 47... Rf1+ {[%clk 0:00:05.3]} 48. Kxe3 {[%clk 0:00:02.8]}
48... Kxf7 {[%clk 0:00:04.8]} 49. Nf5 {[%clk 0:00:03.4]} 49... Rh1 {[%clk
0:00:04]} 0-1

[Event "Early-Titled-Tuesday-Blitz-September-05-2023"]
[Site "Chess.com"]
[Date "2023.09.05"]
[Round "6"]
[White "WilsonPalencia21"]
[Black "Witik"]
[Result "1-0"]
[WhiteElo "2543"]
[BlackElo "2667"]
[TimeControl "180+1"]
[EndTime "9:06:41 PDT"]
[Termination "WilsonPalencia21 won on time"]

1. d4 {[%clk 0:03:00.9]} 1... Nf6 {[%clk 0:02:59.4]} 2. c4 {[%clk 0:02:59.8]}
2... g6 {[%clk 0:02:59.7]} 3. Nf3 {[%clk 0:02:59.3]} 3... Bg7 {[%clk 0:02:59.8]}
4. Nc3 {[%clk 0:02:59.5]} 4... d6 {[%clk 0:03:00.3]} 5. e4 {[%clk 0:02:58.8]}
5... O-O {[%clk 0:03:00.5]} 6. Be2 {[%clk 0:02:57]} 6... e5 {[%clk 0:03:00.6]}
7. O-O {[%clk 0:02:56.6]} 7... Na6 {[%clk 0:02:56.7]} 8. d5 {[%clk 0:02:55.5]}
8... Nc5 {[%clk 0:02:55]} 9. Qc2 {[%clk 0:02:56.1]} 9... a5 {[%clk 0:02:54.9]}
10. Bg5 {[%clk 0:02:53.9]} 10... h6 {[%clk 0:02:54.1]} 11. Be3 {[%clk
0:02:53.2]} 11... b6 {[%clk 0:02:50.8]} 12. h3 {[%clk 0:02:52.4]} 12... Nh5
{[%clk 0:02:50.5]} 13. Qd2 {[%clk 0:02:38.3]} 13... Kh7 {[%clk 0:02:43.5]} 14.
g4 {[%clk 0:02:34.9]} 14... Nf4 {[%clk 0:02:35.4]} 15. Bxf4 {[%clk 0:02:33.3]}
15... exf4 {[%clk 0:02:36.3]} 16. Qxf4 {[%clk 0:02:25]} 16... f5 {[%clk
0:02:36.1]} 17. exf5 {[%clk 0:02:23.3]} 17... gxf5 {[%clk 0:02:36.2]} 18. g5
{[%clk 0:02:23.2]} 18... Ne4 {[%clk 0:02:23.4]} 19. g6+ {[%clk 0:01:58.9]} 19...
Kh8 {[%clk 0:02:08.4]} 20. Rac1 {[%clk 0:01:45.7]} 20... Qe8 {[%clk 0:02:03.4]}
21. Bd3 {[%clk 0:01:37.8]} 21... Qxg6+ {[%clk 0:01:48.7]} 22. Kh2 {[%clk
0:01:35.8]} 22... Qh5 {[%clk 0:01:47.4]} 23. Rg1 {[%clk 0:01:09.3]} 23... Nxf2
{[%clk 0:01:39.9]} 24. Rxg7 {[%clk 0:00:43]} 24... Nxh3 {[%clk 0:00:30.3]} 25.
Qh4 {[%clk 0:00:24.7]} 25... Qxh4 {[%clk 0:00:30.5]} 26. Nxh4 {[%clk 0:00:24.4]}
26... Kxg7 {[%clk 0:00:31.3]} 27. Kxh3 {[%clk 0:00:23]} 27... Kf6 {[%clk
0:00:07.5]} 28. Nf3 {[%clk 0:00:21.4]} 28... Bd7 {[%clk 0:00:05.9]} 29. Kg3
{[%clk 0:00:20.9]} 29... Rae8 {[%clk 0:00:04.8]} 30. Kf2 {[%clk 0:00:20.8]}
30... Rg8 {[%clk 0:00:04.6]} 31. Rh1 {[%clk 0:00:20.9]} 31... Rg6 {[%clk
0:00:04.7]} 32. Ne2 {[%clk 0:00:21.1]} 32... Kg7 {[%clk 0:00:02.7]} 33. Nf4
{[%clk 0:00:21.7]} 33... Rg4 {[%clk 0:00:02.5]} 34. Nh5+ {[%clk 0:00:21.2]}
34... Kf7 {[%clk 0:00:02.5]} 35. Ng3 {[%clk 0:00:21.2]} 35... Rf4 {[%clk
0:00:02.2]} 36. Rxh6 {[%clk 0:00:19.9]} 36... b5 {[%clk 0:00:02.5]} 37. Rh7+
{[%clk 0:00:20]} 37... Kg6 {[%clk 0:00:02]} 38. Rxd7 {[%clk 0:00:20.2]} 38...
bxc4 {[%clk 0:00:02.5]} 39. Be2 {[%clk 0:00:19.8]} 39... Rb8 {[%clk 0:00:02.8]}
40. Re7 {[%clk 0:00:18.7]} 40... Rxb2 {[%clk 0:00:03.3]} 41. Re6+ {[%clk
0:00:19.3]} 41... Kf7 {[%clk 0:00:02.9]} 42. Nh5 {[%clk 0:00:18.3]} 42... Re4
{[%clk 0:00:02.8]} 43. Ng5+ {[%clk 0:00:18.2]} 43... Kg8 {[%clk 0:00:02.3]} 44.
Nxe4 {[%clk 0:00:13.7]} 44... fxe4 {[%clk 0:00:02.5]} 45. Rxe4 {[%clk
0:00:12.9]} 45... c3 {[%clk 0:00:03.1]} 46. Re7 {[%clk 0:00:12.6]} 46... c2
{[%clk 0:00:02.5]} 47. Rxc7 {[%clk 0:00:13.2]} 47... Rxa2 {[%clk 0:00:03.1]} 48.
Nf6+ {[%clk 0:00:13]} 48... Kf8 {[%clk 0:00:03.2]} 49. Ke3 {[%clk 0:00:13.6]}
49... a4 {[%clk 0:00:03.6]} 50. Bh5 {[%clk 0:00:13.2]} 50... c1=Q+ {[%clk
0:00:02.3]} 51. Rxc1 {[%clk 0:00:12.2]} 51... Re2+ {[%clk 0:00:02.6]} 52. Kxe2
{[%clk 0:00:11]} 1-0

[Event "Early-Titled-Tuesday-Blitz-September-05-2023"]
[Site "Chess.com"]
[Date "2023.09.05"]
[Round "6"]
[White "CheckThis4"]
[Black "Rikikits"]
[Result "0-1"]
[WhiteElo "2660"]
[BlackElo "2850"]
[TimeControl "180+1"]
[EndTime "9:06:42 PDT"]
[Termination "Rikikits won on time"]

1. d4 {[%clk 0:03:00.9]} 1... Nc6 {[%clk 0:03:00.9]} 2. Bg5 {[%clk 0:02:56.5]}
2... h6 {[%clk 0:02:59.5]} 3. Bh4 {[%clk 0:02:56.1]} 3... g5 {[%clk 0:02:59.9]}
4. Bg3 {[%clk 0:02:55.8]} 4... Bg7 {[%clk 0:03:00.5]} 5. e3 {[%clk 0:02:55.1]}
5... d6 {[%clk 0:03:00.9]} 6. h4 {[%clk 0:02:54.8]} 6... g4 {[%clk 0:02:59.7]}
7. Nc3 {[%clk 0:02:52]} 7... e5 {[%clk 0:02:59.6]} 8. Bb5 {[%clk 0:02:48.6]}
8... Ne7 {[%clk 0:02:54.6]} 9. dxe5 {[%clk 0:02:33.1]} 9... dxe5 {[%clk
0:02:55.5]} 10. Qxd8+ {[%clk 0:02:31.8]} 10... Kxd8 {[%clk 0:02:55.2]} 11. Nge2
{[%clk 0:02:27.5]} 11... Bd7 {[%clk 0:02:53.5]} 12. O-O-O {[%clk 0:02:24.7]}
12... Kc8 {[%clk 0:02:53.9]} 13. f3 {[%clk 0:02:20.4]} 13... h5 {[%clk
0:02:43.9]} 14. e4 {[%clk 0:02:10]} 14... a6 {[%clk 0:02:37.9]} 15. Bc4 {[%clk
0:02:09.5]} 15... f5 {[%clk 0:02:35]} 16. a3 {[%clk 0:01:46.9]} 16... f4 {[%clk
0:02:33]} 17. Bf2 {[%clk 0:01:41.2]} 17... g3 {[%clk 0:02:27]} 18. Bc5 {[%clk
0:01:40.8]} 18... b6 {[%clk 0:02:27.1]} 19. Bxe7 {[%clk 0:01:38.4]} 19... Nxe7
{[%clk 0:02:28]} 20. Nd5 {[%clk 0:01:35.6]} 20... Nxd5 {[%clk 0:02:26.9]} 21.
Bxd5 {[%clk 0:01:32.8]} 21... c6 {[%clk 0:02:27]} 22. Bb3 {[%clk 0:01:28]} 22...
Kc7 {[%clk 0:02:26.6]} 23. Rd2 {[%clk 0:01:28]} 23... Rad8 {[%clk 0:02:26.4]}
24. Nc3 {[%clk 0:01:09.7]} 24... Bf8 {[%clk 0:02:22.9]} 25. Bc4 {[%clk
0:01:02.9]} 25... b5 {[%clk 0:02:22.2]} 26. Bf7 {[%clk 0:00:59.1]} 26... Bc5
{[%clk 0:02:21.4]} 27. Kb1 {[%clk 0:00:57.9]} 27... a5 {[%clk 0:02:19.4]} 28. a4
{[%clk 0:00:53.7]} 28... b4 {[%clk 0:02:19.2]} 29. Ne2 {[%clk 0:00:53.2]} 29...
Bc8 {[%clk 0:02:13.2]} 30. Rdd1 {[%clk 0:00:47.2]} 30... Be7 {[%clk 0:02:06.2]}
31. Nc1 {[%clk 0:00:42.8]} 31... Rxd1 {[%clk 0:02:00.9]} 32. Rxd1 {[%clk
0:00:43.7]} 32... Bxh4 {[%clk 0:02:00.9]} 33. Rh1 {[%clk 0:00:43.5]} 33... Be7
{[%clk 0:01:58.7]} 34. Nd3 {[%clk 0:00:38.1]} 34... Bd6 {[%clk 0:01:45.3]} 35.
Rxh5 {[%clk 0:00:37.2]} 35... Rxh5 {[%clk 0:01:45.1]} 36. Bxh5 {[%clk
0:00:38.1]} 36... Be6 {[%clk 0:01:41.3]} 37. b3 {[%clk 0:00:34.4]} 37... c5
{[%clk 0:01:40.3]} 38. c4 {[%clk 0:00:17.1]} 38... bxc3 {[%clk 0:01:37.9]} 39.
Kc2 {[%clk 0:00:17.8]} 39... c4 {[%clk 0:01:36.2]} 40. bxc4 {[%clk 0:00:18]}
40... Bxc4 {[%clk 0:01:27.6]} 41. Kxc3 {[%clk 0:00:18.6]} 41... Ba6 {[%clk
0:01:24.9]} 42. Bg4 {[%clk 0:00:17.3]} 42... Kb6 {[%clk 0:01:20.2]} 43. Be6
{[%clk 0:00:16.3]} 43... Bc7 {[%clk 0:01:08]} 44. Bf5 {[%clk 0:00:16.5]} 44...
Kc6 {[%clk 0:01:07.3]} 45. Bg4 {[%clk 0:00:15.2]} 45... Kd6 {[%clk 0:01:07.5]}
46. Bh3 {[%clk 0:00:14.9]} 46... Bb6 {[%clk 0:01:07.9]} 47. Bg4 {[%clk
0:00:14.5]} 47... Bd4+ {[%clk 0:01:06.2]} 48. Kc2 {[%clk 0:00:14.8]} 48... Bb7
{[%clk 0:00:58.5]} 49. Bh3 {[%clk 0:00:14.6]} 49... Bc6 {[%clk 0:00:59.1]} 50.
Kb3 {[%clk 0:00:14.5]} 50... Be8 {[%clk 0:00:59.1]} 51. Bg4 {[%clk 0:00:12.4]}
51... Bf7+ {[%clk 0:00:59.6]} 52. Kc2 {[%clk 0:00:11.1]} 52... Bc4 {[%clk
0:01:00.2]} 53. Bh3 {[%clk 0:00:10.3]} 53... Bf7 {[%clk 0:00:58.3]} 54. Bg4
{[%clk 0:00:10.5]} 54... Bg6 {[%clk 0:00:58.8]} 55. Bh3 {[%clk 0:00:10.4]} 55...
Bh5 {[%clk 0:00:59]} 56. Kb3 {[%clk 0:00:07.2]} 56... Ke7 {[%clk 0:00:53.6]} 57.
Kc4 {[%clk 0:00:06.8]} 57... Be8 {[%clk 0:00:49.3]} 58. Kb3 {[%clk 0:00:06.1]}
58... Kf6 {[%clk 0:00:47.9]} 59. Bg4 {[%clk 0:00:06.1]} 59... Kg5 {[%clk
0:00:48.2]} 60. Bh3 {[%clk 0:00:06.6]} 60... Bh5 {[%clk 0:00:48.1]} 61. Kc4
{[%clk 0:00:06.4]} 61... Kh4 {[%clk 0:00:45.6]} 62. Ne1 {[%clk 0:00:05.2]} 62...
Be8 {[%clk 0:00:45]} 63. Nd3 {[%clk 0:00:04.4]} 63... Bxa4 {[%clk 0:00:42.9]}
64. Kd5 {[%clk 0:00:02.6]} 64... Bb3+ {[%clk 0:00:42.4]} 65. Kd6 {[%clk
0:00:02.9]} 65... a4 {[%clk 0:00:41.9]} 66. Nxe5 {[%clk 0:00:02.9]} 66... Bxe5+
{[%clk 0:00:40.9]} 67. Kxe5 {[%clk 0:00:03.8]} 67... a3 {[%clk 0:00:41.4]} 68.
Kxf4 {[%clk 0:00:03.7]} 68... a2 {[%clk 0:00:41.9]} 0-1

[Event "Early-Titled-Tuesday-Blitz-September-05-2023"]
[Site "Chess.com"]
[Date "2023.09.05"]
[Round "6"]
[White "Arteler"]
[Black "Andrej2004"]
[Result "0-1"]
[WhiteElo "2391"]
[BlackElo "2565"]
[TimeControl "180+1"]
[EndTime "9:06:42 PDT"]
[Termination "Andrej2004 won by resignation"]

1. e4 {[%clk 0:03:00.9]} 1... c5 {[%clk 0:02:56.5]} 2. Nf3 {[%clk 0:03:00.2]}
2... Nc6 {[%clk 0:02:56.3]} 3. c3 {[%clk 0:03:00]} 3... g6 {[%clk 0:02:55]} 4.
d4 {[%clk 0:03:00.5]} 4... cxd4 {[%clk 0:02:55.9]} 5. cxd4 {[%clk 0:03:01.4]}
5... d5 {[%clk 0:02:54.8]} 6. exd5 {[%clk 0:03:01.7]} 6... Qxd5 {[%clk
0:02:55.1]} 7. Nc3 {[%clk 0:03:02.3]} 7... Qa5 {[%clk 0:02:55.2]} 8. d5 {[%clk
0:02:57]} 8... Nb8 {[%clk 0:02:54.8]} 9. Be3 {[%clk 0:02:39.5]} 9... Bg7 {[%clk
0:02:51.5]} 10. Bd4 {[%clk 0:02:40]} 10... Nf6 {[%clk 0:02:51.6]} 11. Bb5+
{[%clk 0:02:37.6]} 11... Bd7 {[%clk 0:02:51.3]} 12. Qe2 {[%clk 0:02:35.4]} 12...
O-O {[%clk 0:02:50.3]} 13. O-O {[%clk 0:02:32.3]} 13... Bxb5 {[%clk 0:02:49.1]}
14. Nxb5 {[%clk 0:02:16.5]} 14... a6 {[%clk 0:02:48.3]} 15. Nc3 {[%clk
0:02:10.7]} 15... Nbd7 {[%clk 0:02:43.4]} 16. Qxe7 {[%clk 0:02:04.3]} 16... Rfe8
{[%clk 0:02:32.9]} 17. Qd6 {[%clk 0:02:04.4]} 17... Rad8 {[%clk 0:02:31.3]} 18.
Rfe1 {[%clk 0:02:01.6]} 18... Ne5 {[%clk 0:02:24]} 19. Qb6 {[%clk 0:01:45.5]}
19... Nxf3+ {[%clk 0:01:24.4]} 20. gxf3 {[%clk 0:01:46.4]} 20... Qxb6 {[%clk
0:01:02.9]} 21. Bxb6 {[%clk 0:01:46.6]} 21... Rd6 {[%clk 0:00:43.9]} 22. Bc7
{[%clk 0:01:18.2]} 22... Rd7 {[%clk 0:00:39.9]} 23. d6 {[%clk 0:01:13.7]} 23...
Rc8 {[%clk 0:00:36.5]} 24. Na4 {[%clk 0:01:04.3]} 24... Bf8 {[%clk 0:00:32]} 25.
Nb6 {[%clk 0:00:56.5]} 25... Rcxc7 {[%clk 0:00:26.8]} 26. dxc7 {[%clk
0:00:57.4]} 26... Rxc7 {[%clk 0:00:27]} 27. Rac1 {[%clk 0:00:55.8]} 27... Rc5
{[%clk 0:00:09.8]} 28. Rxc5 {[%clk 0:00:52.9]} 28... Bxc5 {[%clk 0:00:10.7]} 29.
Na4 {[%clk 0:00:53.4]} 29... Bd4 {[%clk 0:00:10.2]} 30. Rd1 {[%clk 0:00:52.5]}
30... Be5 {[%clk 0:00:10.7]} 31. Nc3 {[%clk 0:00:50.4]} 31... Kg7 {[%clk
0:00:09.7]} 32. Ne4 {[%clk 0:00:46.4]} 32... b5 {[%clk 0:00:07.1]} 33. Nxf6
{[%clk 0:00:45.5]} 33... Kxf6 {[%clk 0:00:08]} 34. b3 {[%clk 0:00:44.4]} 34...
Ke6 {[%clk 0:00:08.4]} 35. Kf1 {[%clk 0:00:44.1]} 35... Bxh2 {[%clk 0:00:07.4]}
36. Ke2 {[%clk 0:00:18]} 36... Bc7 {[%clk 0:00:07]} 37. Rc1 {[%clk 0:00:15.9]}
37... Kd7 {[%clk 0:00:07]} 38. Rd1+ {[%clk 0:00:10.5]} 38... Ke6 {[%clk
0:00:06.6]} 39. Ke3 {[%clk 0:00:08.2]} 39... h5 {[%clk 0:00:06.3]} 40. f4 {[%clk
0:00:08.8]} 40... Kf5 {[%clk 0:00:05.8]} 41. Rd5+ {[%clk 0:00:08.6]} 41... Ke6
{[%clk 0:00:06.2]} 42. Rd3 {[%clk 0:00:07.3]} 42... Kf5 {[%clk 0:00:05.3]} 43.
Rd7 {[%clk 0:00:05.7]} 43... Bxf4+ {[%clk 0:00:05]} 44. Kf3 {[%clk 0:00:06.3]}
44... g5 {[%clk 0:00:04.7]} 45. Ra7 {[%clk 0:00:07]} 45... g4+ {[%clk 0:00:05]}
46. Kg2 {[%clk 0:00:07.5]} 46... h4 {[%clk 0:00:05.4]} 47. Rxf7+ {[%clk
0:00:07.8]} 47... Ke4 {[%clk 0:00:05.3]} 48. Re7+ {[%clk 0:00:08]} 48... Kf5
{[%clk 0:00:05.2]} 49. Ra7 {[%clk 0:00:08.6]} 49... h3+ {[%clk 0:00:05.3]} 50.
Kg1 {[%clk 0:00:09.2]} 50... g3 {[%clk 0:00:04.9]} 51. fxg3 {[%clk 0:00:10.1]}
51... Be3+ {[%clk 0:00:05.3]} 52. Kh2 {[%clk 0:00:10]} 52... Bxa7 {[%clk
0:00:06.2]} 0-1

[Event "Early-Titled-Tuesday-Blitz-September-05-2023"]
[Site "Chess.com"]
[Date "2023.09.05"]
[Round "6"]
[White "Fengwi"]
[Black "unclear15"]
[Result "1/2-1/2"]
[WhiteElo "2270"]
[BlackElo "2400"]
[TimeControl "180+1"]
[EndTime "9:06:46 PDT"]
[Termination "Game drawn by repetition"]

1. Nf3 {[%clk 0:03:00.2]} 1... d5 {[%clk 0:02:55.4]} 2. b3 {[%clk 0:02:52.9]}
2... Nd7 {[%clk 0:02:53.5]} 3. Bb2 {[%clk 0:02:52.4]} 3... Ngf6 {[%clk
0:02:51.9]} 4. g3 {[%clk 0:02:51.4]} 4... g6 {[%clk 0:02:51.5]} 5. c4 {[%clk
0:02:48]} 5... dxc4 {[%clk 0:02:49.4]} 6. bxc4 {[%clk 0:02:47.2]} 6... Bg7
{[%clk 0:02:50.3]} 7. Bg2 {[%clk 0:02:47.2]} 7... O-O {[%clk 0:02:49.9]} 8. O-O
{[%clk 0:02:47.6]} 8... c5 {[%clk 0:02:48.1]} 9. a4 {[%clk 0:02:45.2]} 9... Nb8
{[%clk 0:02:39.2]} 10. a5 {[%clk 0:02:28.3]} 10... a6 {[%clk 0:02:37.9]} 11. d3
{[%clk 0:01:51.9]} 11... Nc6 {[%clk 0:02:31.6]} 12. Qa4 {[%clk 0:01:50.7]} 12...
Bg4 {[%clk 0:02:22.8]} 13. Nbd2 {[%clk 0:01:47.7]} 13... Nh5 {[%clk 0:02:18.1]}
14. Bxg7 {[%clk 0:01:45.3]} 14... Nxg7 {[%clk 0:02:19]} 15. Rfb1 {[%clk
0:01:42.9]} 15... Nb4 {[%clk 0:02:16.5]} 16. h3 {[%clk 0:01:39.1]} 16... Bd7
{[%clk 0:02:14.9]} 17. Qb3 {[%clk 0:01:36.5]} 17... Bc6 {[%clk 0:02:13.8]} 18.
Ne1 {[%clk 0:01:31.4]} 18... Nf5 {[%clk 0:02:06.4]} 19. Nc2 {[%clk 0:01:27.3]}
19... Nxc2 {[%clk 0:01:55.4]} 20. Qxc2 {[%clk 0:01:26.4]} 20... Nd4 {[%clk
0:01:56.3]} 21. Qd1 {[%clk 0:01:26.2]} 21... Bxg2 {[%clk 0:01:47.6]} 22. Kxg2
{[%clk 0:01:25.2]} 22... Rb8 {[%clk 0:01:47.6]} 23. Rb6 {[%clk 0:01:17.3]} 23...
Nc6 {[%clk 0:01:46.3]} 24. Qa4 {[%clk 0:01:12.8]} 24... Nb4 {[%clk 0:01:40.4]}
25. Ne4 {[%clk 0:01:07.4]} 25... Nc6 {[%clk 0:01:10.6]} 26. Nxc5 {[%clk
0:01:04.8]} 26... Qd4 {[%clk 0:01:07.7]} 27. Nxb7 {[%clk 0:00:56.2]} 27... Ne5
{[%clk 0:00:58.5]} 28. Rab1 {[%clk 0:00:51.3]} 28... Rbc8 {[%clk 0:00:53.7]} 29.
Rxa6 {[%clk 0:00:46]} 29... Nxc4 {[%clk 0:00:51.2]} 30. Kg1 {[%clk 0:00:13.5]}
30... Qd5 {[%clk 0:00:21.6]} 31. dxc4 {[%clk 0:00:13]} 31... Rxc4 {[%clk
0:00:22.5]} 32. Qd1 {[%clk 0:00:10.4]} 32... Qf5 {[%clk 0:00:18.7]} 33. Qd3
{[%clk 0:00:09.8]} 33... Qc8 {[%clk 0:00:16.1]} 34. Rab6 {[%clk 0:00:07.6]}
34... Rc3 {[%clk 0:00:15.7]} 35. Qd1 {[%clk 0:00:06.2]} 35... Qxh3 {[%clk
0:00:14.4]} 36. a6 {[%clk 0:00:05.3]} 36... Rxg3+ {[%clk 0:00:08.9]} 37. fxg3
{[%clk 0:00:06.2]} 37... Qxg3+ {[%clk 0:00:09.8]} 38. Kf1 {[%clk 0:00:06.6]}
38... Qh3+ {[%clk 0:00:10]} 39. Ke1 {[%clk 0:00:07]} 39... Qg3+ {[%clk
0:00:09.7]} 40. Kd2 {[%clk 0:00:07.2]} 40... Rc8 {[%clk 0:00:06.9]} 41. Qb3
{[%clk 0:00:05.4]} 41... Qf4+ {[%clk 0:00:05.9]} 42. Kd1 {[%clk 0:00:02.4]}
42... Qf1+ {[%clk 0:00:05.7]} 43. Kd2 {[%clk 0:00:02.8]} 43... Qf4+ {[%clk
0:00:05.6]} 44. Ke1 {[%clk 0:00:02.9]} 44... Qh4+ {[%clk 0:00:04.7]} 45. Kf1
{[%clk 0:00:02.3]} 45... Qh1+ {[%clk 0:00:04.1]} 46. Kf2 {[%clk 0:00:02.6]}
46... Qh2+ {[%clk 0:00:04.4]} 47. Ke3 {[%clk 0:00:01.8]} 47... Qg3+ {[%clk
0:00:03.2]} 48. Kd2 {[%clk 0:00:01.9]} 48... Qf4+ {[%clk 0:00:03.6]} 1/2-1/2

[Event "Early-Titled-Tuesday-Blitz-September-05-2023"]
[Site "Chess.com"]
[Date "2023.09.05"]
[Round "6"]
[White "vovachesss"]
[Black "gau248"]
[Result "0-1"]
[WhiteElo "2762"]
[BlackElo "2582"]
[TimeControl "180+1"]
[EndTime "9:06:47 PDT"]
[Termination "gau248 won on time"]

1. e4 {[%clk 0:03:00.9]} 1... e5 {[%clk 0:02:58.4]} 2. Nf3 {[%clk 0:03:01.1]}
2... Nc6 {[%clk 0:02:58.3]} 3. Nc3 {[%clk 0:03:01.8]} 3... Nf6 {[%clk
0:02:56.8]} 4. d4 {[%clk 0:03:02.4]} 4... exd4 {[%clk 0:02:55.5]} 5. Nxd4 {[%clk
0:03:03.3]} 5... Bb4 {[%clk 0:02:55.5]} 6. Nxc6 {[%clk 0:03:03.9]} 6... bxc6
{[%clk 0:02:55.8]} 7. Bd3 {[%clk 0:03:04.6]} 7... O-O {[%clk 0:02:52.9]} 8. O-O
{[%clk 0:03:04.9]} 8... d5 {[%clk 0:02:53.3]} 9. exd5 {[%clk 0:03:05.8]} 9...
cxd5 {[%clk 0:02:49.7]} 10. h3 {[%clk 0:03:05.9]} 10... c6 {[%clk 0:02:37.1]}
11. Qf3 {[%clk 0:03:05.5]} 11... Re8 {[%clk 0:02:27.8]} 12. Bf4 {[%clk 0:03:04]}
12... Bd6 {[%clk 0:02:23.9]} 13. Ne2 {[%clk 0:03:04.1]} 13... Bxf4 {[%clk
0:02:20.9]} 14. Qxf4 {[%clk 0:03:02]} 14... Bb7 {[%clk 0:02:11.1]} 15. c4 {[%clk
0:02:55]} 15... c5 {[%clk 0:02:09]} 16. Rad1 {[%clk 0:02:24.7]} 16... d4 {[%clk
0:02:06]} 17. Ng3 {[%clk 0:02:25.3]} 17... Qb8 {[%clk 0:01:54.9]} 18. Qg5 {[%clk
0:02:08]} 18... Qe5 {[%clk 0:01:52.4]} 19. Nf5 {[%clk 0:02:07.6]} 19... Ne4
{[%clk 0:01:41.8]} 20. Nh6+ {[%clk 0:00:40.1]} 20... Kf8 {[%clk 0:01:38.5]} 21.
Qxe5 {[%clk 0:00:40.8]} 21... Rxe5 {[%clk 0:01:37.7]} 22. Ng4 {[%clk 0:00:41.7]}
22... Re7 {[%clk 0:01:29.5]} 23. Rfe1 {[%clk 0:00:35.2]} 23... Rae8 {[%clk
0:01:23.8]} 24. Bxe4 {[%clk 0:00:19.3]} 24... Rxe4 {[%clk 0:01:20.1]} 25. Rxe4
{[%clk 0:00:19.1]} 25... Rxe4 {[%clk 0:01:21]} 26. Kf1 {[%clk 0:00:19.2]} 26...
a5 {[%clk 0:01:07.3]} 27. f3 {[%clk 0:00:18.3]} 27... Re6 {[%clk 0:01:05]} 28.
Nf2 {[%clk 0:00:18.7]} 28... a4 {[%clk 0:01:03.7]} 29. Nd3 {[%clk 0:00:18.8]}
29... Ba6 {[%clk 0:00:58.5]} 30. b3 {[%clk 0:00:18.1]} 30... Rc6 {[%clk
0:00:38.4]} 31. Re1 {[%clk 0:00:14.1]} 31... f6 {[%clk 0:00:38.4]} 32. Kf2
{[%clk 0:00:12.2]} 32... a3 {[%clk 0:00:31.9]} 33. h4 {[%clk 0:00:09.4]} 33...
h5 {[%clk 0:00:31.5]} 34. g4 {[%clk 0:00:09.3]} 34... hxg4 {[%clk 0:00:31.3]}
35. fxg4 {[%clk 0:00:10.2]} 35... Bc8 {[%clk 0:00:31.8]} 36. g5 {[%clk
0:00:10.2]} 36... Bf5 {[%clk 0:00:31.3]} 37. Nf4 {[%clk 0:00:09]} 37... d3
{[%clk 0:00:23.5]} 38. Ke3 {[%clk 0:00:06.7]} 38... Rd6 {[%clk 0:00:20.7]} 39.
Kd2 {[%clk 0:00:06.9]} 39... Rd4 {[%clk 0:00:19.7]} 40. Rf1 {[%clk 0:00:07.5]}
40... Kf7 {[%clk 0:00:12]} 41. gxf6 {[%clk 0:00:07.3]} 41... gxf6 {[%clk
0:00:12.9]} 42. Nd5 {[%clk 0:00:07.5]} 42... Bg6 {[%clk 0:00:08.3]} 43. Rxf6+
{[%clk 0:00:07]} 43... Kg7 {[%clk 0:00:08.8]} 44. Rc6 {[%clk 0:00:04.6]} 44...
Rxh4 {[%clk 0:00:09]} 45. Ne7 {[%clk 0:00:01.5]} 45... Rh2+ {[%clk 0:00:08.7]}
46. Ke3 {[%clk 0:00:02]} 46... Re2+ {[%clk 0:00:08.5]} 47. Kf3 {[%clk
0:00:02.2]} 47... Rxe7 {[%clk 0:00:09]} 48. Rd6 {[%clk 0:00:02]} 48... Re2
{[%clk 0:00:08.7]} 49. Rd7+ {[%clk 0:00:01.4]} 49... Kh6 {[%clk 0:00:08.5]} 50.
Rd6 {[%clk 0:00:01.8]} 50... Rxa2 {[%clk 0:00:08.6]} 0-1